[Event "Masters Tournament (MTO)"]
[Site "Biel, Switzerland"]
[Date "2026.07.20"]
[Round "7.4"]
[White "Dong, Hongfu"]
[Black "Alexakis, Dimitris"]
[Result "0-1"]
[TimeControl "100+30+30sec/move"]
[WhiteTitle "-"]
[BlackTitle "-"]
[WhiteFideId "8626960"]
[BlackFideId "4277023"]
[WhiteElo "2353"]
[BlackElo "2525"]

1. e4 {[%emt 02:20:16]} c5 {[%clk 01:40:50]} {[%emt 00:00:05]} 2. Nf3 {[%clk
01:41:11]} {[%emt 00:00:08]} Nc6 {[%clk 01:41:03]} {[%emt 00:00:16]} 3. d4
{[%clk 01:41:10]} {[%emt 00:00:30]} cxd4 {[%clk 01:41:06]} {[%emt 00:00:28]} 4.
Nxd4 {[%clk 01:41:33]} {[%emt 00:00:07]} Nf6 {[%clk 01:41:28]} {[%emt
00:00:07]} 5. Nc3 {[%clk 01:41:57]} {[%emt 00:00:06]} d6 {[%clk 01:41:52]}
{[%emt 00:00:06]} 6. Bg5 {[%clk 01:41:35]} {[%emt 00:00:52]} Bd7 {[%clk
01:41:55]} {[%emt 00:00:27]} 7. Qd2 {[%clk 01:41:44]} {[%emt 00:00:21]} a6
{[%clk 01:42:15]} {[%emt 00:00:11]} 8. O-O-O {[%clk 01:40:25]} {[%emt
00:01:49]} e6 {[%clk 01:42:29]} {[%emt 00:00:16]} 9. f4 {[%clk 01:34:16]}
{[%emt 00:06:39]} Be7 {[%clk 01:40:19]} {[%emt 00:02:40]} 10. Nf3 {[%clk
01:34:05]} {[%emt 00:00:40]} b5 {[%clk 01:40:32]} {[%emt 00:00:18]} 11. e5
{[%clk 01:34:17]} {[%emt 00:00:18]} b4 {[%clk 01:39:59]} {[%emt 00:01:02]} 12.
exf6 {[%clk 01:34:19]} {[%emt 00:00:27]} bxc3 {[%clk 01:39:28]} {[%emt
00:01:02]} 13. Qxc3 {[%clk 01:34:30]} {[%emt 00:00:18]} gxf6 {[%clk 01:39:49]}
{[%emt 00:00:10]} 14. Bh4 {[%clk 01:34:51]} {[%emt 00:00:08]} d5 {[%clk
01:38:07]} {[%emt 00:02:13]} 15. a3 {[%clk 01:20:45]} {[%emt 00:14:37]} Rc8
{[%clk 01:31:58]} {[%emt 00:06:39]} 16. Nd4 {[%clk 00:51:48]} {[%emt 00:29:27]}
Rg8 {[%clk 01:05:09]} {[%emt 00:27:19]} 17. Nxc6 {[%clk 00:42:40]} {[%emt
00:09:38]} Rxc6 {[%clk 01:05:03]} {[%emt 00:00:36]} 18. Qd3 {[%clk 00:42:56]}
{[%emt 00:00:14]} f5 {[%clk 00:46:44]} {[%emt 00:18:48]} 19. Bxe7 {[%clk
00:42:43]} {[%emt 00:00:42]} Kxe7 {[%clk 00:46:42]} {[%emt 00:00:33]} 20. g3
{[%clk 00:38:15]} {[%emt 00:04:57]} Qa5 {[%clk 00:25:02]} {[%emt 00:22:11]} 21.
Qd4 {[%clk 00:13:21]} {[%emt 00:25:24]} Rb8 {[%clk 00:21:16]} {[%emt 00:04:16]}
22. Bd3 {[%clk 00:13:00]} {[%emt 00:00:51]} Rcb6 {[%clk 00:18:22]} {[%emt
00:03:24]} 23. Rhe1 {[%clk 00:12:28]} {[%emt 00:01:02]} Rxb2 {[%clk 00:16:37]}
{[%emt 00:02:15]} 24. Qxb2 {[%clk 00:12:54]} {[%emt 00:00:04]} Rxb2 {[%clk
00:17:00]} {[%emt 00:00:07]} 25. Kxb2 {[%clk 00:13:22]} {[%emt 00:00:02]} d4
{[%clk 00:16:56]} {[%emt 00:00:33]} 26. Re5 {[%clk 00:07:01]} {[%emt 00:06:52]}
Qc3+ {[%clk 00:14:06]} {[%emt 00:03:20]} 27. Kb1 {[%clk 00:07:29]} {[%emt
00:00:01]} Qxa3 {[%clk 00:03:56]} {[%emt 00:10:40]} 28. Bxf5 {[%clk 00:06:29]}
{[%emt 00:01:30]} Qb4+ {[%clk 00:04:20]} {[%emt 00:00:06]} 29. Kc1 {[%clk
00:06:55]} {[%emt 00:00:03]} a5 {[%clk 00:04:26]} {[%emt 00:00:25]} 30. Be4
{[%clk 00:02:45]} {[%emt 00:04:41]} f6 {[%clk 00:02:38]} {[%emt 00:02:17]} 31.
Rh5 {[%clk 00:03:06]} {[%emt 00:00:08]} a4 {[%clk 00:02:48]} {[%emt 00:00:21]}
32. Rxh7+ {[%clk 00:03:24]} {[%emt 00:00:12]} Kd6 {[%clk 00:02:42]} {[%emt
00:00:36]} 33. Rh8 {[%clk 00:02:51]} {[%emt 00:01:03]} a3 {[%clk 00:02:52]}
{[%emt 00:00:20]} 34. Bg6 {[%clk 00:02:34]} {[%emt 00:00:46]} Qb2+ {[%clk
00:01:22]} {[%emt 00:02:01]} 35. Kd2 {[%clk 00:02:59]} {[%emt 00:00:06]} Qc3+
{[%clk 00:01:35]} {[%emt 00:00:16]} 36. Ke2 {[%clk 00:03:25]} {[%emt 00:00:04]}
Bb5+ {[%clk 00:01:58]} {[%emt 00:00:08]} 37. Bd3 {[%clk 00:03:42]} {[%emt
00:00:13]} Qxc2+ {[%clk 00:02:13]} {[%emt 00:00:14]} 0-1

[Event "Masters Tournament (MTO)"]
[Site "Biel, Switzerland"]
[Date "2026.07.20"]
[Round "7.5"]
[White "Baenziger, Fabian"]
[Black "Shukhman, Anna"]
[Result "1/2-1/2"]
[TimeControl "100+30+30sec/move"]
[WhiteTitle "-"]
[BlackTitle "-"]
[WhiteFideId "1330110"]
[BlackFideId "54180058"]
[WhiteElo "2435"]
[BlackElo "2443"]

1. d4 {[%clk 01:40:54]} {[%emt 00:00:06]} Nf6 {[%clk 01:40:57]} {[%emt
00:00:04]} 2. c4 {[%clk 01:41:17]} {[%emt 00:00:07]} g6 {[%clk 01:41:24]}
{[%emt 00:00:03]} 3. g3 {[%clk 01:37:55]} {[%emt 00:03:52]} Bg7 {[%clk
01:41:42]} {[%emt 00:00:12]} 4. Bg2 {[%clk 01:38:18]} {[%emt 00:00:06]} O-O
{[%clk 01:41:50]} {[%emt 00:00:22]} 5. Nc3 {[%clk 01:38:21]} {[%emt 00:00:27]}
d6 {[%clk 01:42:02]} {[%emt 00:00:19]} 6. Nf3 {[%clk 01:38:02]} {[%emt
00:00:48]} c5 {[%clk 01:42:28]} {[%emt 00:00:04]} 7. O-O {[%clk 01:37:37]}
{[%emt 00:00:54]} Nc6 {[%clk 01:42:56]} {[%emt 00:00:03]} 8. dxc5 {[%clk
01:32:56]} {[%emt 00:05:12]} dxc5 {[%clk 01:43:22]} {[%emt 00:00:04]} 9. Bf4
{[%clk 01:33:19]} {[%emt 00:00:06]} Nh5 {[%clk 01:43:48]} {[%emt 00:00:04]} 10.
Be3 {[%clk 01:33:45]} {[%emt 00:00:04]} b6 {[%clk 01:44:12]} {[%emt 00:00:06]}
11. Qc1 {[%clk 01:33:43]} {[%emt 00:00:32]} Bb7 {[%clk 01:44:31]} {[%emt
00:00:11]} 12. Rd1 {[%clk 01:32:10]} {[%emt 00:02:02]} Qe8 {[%clk 01:44:58]}
{[%emt 00:00:04]} 13. Bh6 {[%clk 01:28:36]} {[%emt 00:04:04]} Rd8 {[%clk
01:42:13]} {[%emt 00:03:15]} 14. Rxd8 {[%clk 01:10:39]} {[%emt 00:18:28]} Qxd8
{[%clk 01:35:07]} {[%emt 00:07:36]} 15. Qe3 {[%clk 01:07:15]} {[%emt 00:03:53]}
Nd4 {[%clk 01:21:48]} {[%emt 00:13:48]} 16. Rd1 {[%clk 01:05:59]} {[%emt
00:01:46]} Bxh6 {[%clk 01:14:44]} {[%emt 00:07:35]} 17. Qxh6 {[%clk 01:05:20]}
{[%emt 00:01:08]} Bxf3 {[%clk 01:14:45]} {[%emt 00:00:29]} 18. Bxf3 {[%clk
01:02:35]} {[%emt 00:03:15]} Nf6 {[%clk 01:15:04]} {[%emt 00:00:11]} 19. Kg2
{[%clk 00:56:58]} {[%emt 00:06:06]} Qc8 {[%clk 01:09:36]} {[%emt 00:05:58]} 20.
Qe3 {[%clk 00:45:36]} {[%emt 00:11:52]} Re8 {[%clk 01:06:14]} {[%emt 00:03:53]}
21. Nb5 {[%clk 00:43:23]} {[%emt 00:02:44]} Nxb5 {[%clk 01:02:59]} {[%emt
00:03:45]} 22. cxb5 {[%clk 00:42:28]} {[%emt 00:01:24]} Rd8 {[%clk 01:03:24]}
{[%emt 00:00:05]} 23. Rxd8+ {[%clk 00:38:21]} {[%emt 00:04:37]} Qxd8 {[%clk
01:03:50]} {[%emt 00:00:04]} 24. h3 {[%clk 00:38:19]} {[%emt 00:00:32]} Qd6
{[%clk 01:01:41]} {[%emt 00:02:38]} 25. Qa3 {[%clk 00:36:03]} {[%emt 00:02:46]}
Qc7 {[%clk 01:01:54]} {[%emt 00:00:17]} 26. Bc6 {[%clk 00:32:00]} {[%emt
00:04:34]} a5 {[%clk 00:53:48]} {[%emt 00:08:36]} 27. Qd3 {[%clk 00:26:39]}
{[%emt 00:05:50]} Qd6 {[%clk 00:48:33]} {[%emt 00:05:45]} 28. Qe3 {[%clk
00:22:47]} {[%emt 00:04:22]} e5 {[%clk 00:43:41]} {[%emt 00:05:23]} 29. f4
{[%clk 00:13:22]} {[%emt 00:09:55]} e4 {[%clk 00:42:27]} {[%emt 00:01:44]} 30.
Qc3 {[%clk 00:11:42]} {[%emt 00:02:10]} Qd1 {[%clk 00:37:21]} {[%emt 00:05:35]}
31. Qxf6 {[%clk 00:06:44]} {[%emt 00:05:28]} Qxe2+ {[%clk 00:37:48]} {[%emt
00:00:03]} 32. Kg1 {[%clk 00:07:09]} {[%emt 00:00:05]} Qe3+ {[%clk 00:26:52]}
{[%emt 00:11:27]} 33. Kg2 {[%clk 00:06:40]} {[%emt 00:00:58]} Qf3+ {[%clk
00:27:18]} {[%emt 00:00:04]} 34. Kh2 {[%clk 00:07:05]} {[%emt 00:00:05]} Qf2+
{[%clk 00:27:41]} {[%emt 00:00:08]} 35. Kh1 {[%clk 00:07:30]} {[%emt 00:00:05]}
Qxg3 {[%clk 00:27:15]} {[%emt 00:00:55]} 36. Be8 {[%clk 00:05:25]} {[%emt
00:02:35]} Qxh3+ {[%clk 00:27:31]} {[%emt 00:00:14]} 37. Kg1 {[%clk 00:05:51]}
{[%emt 00:00:04]} Qe3+ {[%clk 00:27:23]} {[%emt 00:00:37]} 38. Kg2 {[%clk
00:05:40]} {[%emt 00:00:42]} Qd2+ {[%clk 00:27:38]} {[%emt 00:00:16]} 39. Kg3
{[%clk 00:05:45]} {[%emt 00:00:25]} Qd3+ {[%clk 00:27:30]} {[%emt 00:00:38]} 40.
Kh4 {[%clk 00:00:58]} {[%emt 00:05:17]} Qd5 {[%clk 00:27:12]} {[%emt 00:00:47]}
41. Qe5 {[%clk 00:24:02]} {[%emt 00:07:27]} Qd8+ {[%clk 00:51:40]} {[%emt
00:06:02]} 42. Kh3 {[%clk 00:16:29]} {[%emt 00:08:03]} Qd3+ {[%clk 00:51:23]}
{[%emt 00:00:47]} 43. Kh4 {[%clk 00:16:54]} {[%emt 00:00:05]} Qd8+ {[%clk
00:14:43]} {[%emt 00:37:10]} 44. Kh3 {[%clk 00:17:03]} {[%emt 00:00:21]} Qd3+
{[%clk 00:15:04]} {[%emt 00:00:10]} 1/2-1/2

[Event "Masters Tournament (MTO)"]
[Site "Biel, Switzerland"]
[Date "2026.07.20"]
[Round "7.6"]
[White "Ganguly, Surya Shekhar"]
[Black "Cao, Qingfeng"]
[Result "0-1"]
[TimeControl "100+30+30sec/move"]
[WhiteTitle "-"]
[BlackTitle "-"]
[WhiteFideId "5002150"]
[BlackFideId "8627568"]
[WhiteElo "2578"]
[BlackElo "2365"]

1. e4 {[%clk 01:40:57]} {[%emt 00:00:02]} c6 {[%clk 01:39:52]} {[%emt
00:01:09]} 2. d4 {[%clk 01:41:14]} {[%emt 00:00:12]} d5 {[%clk 01:39:27]}
{[%emt 00:00:56]} 3. e5 {[%clk 01:41:35]} {[%emt 00:00:09]} Bf5 {[%clk
01:39:47]} {[%emt 00:00:08]} 4. h4 {[%clk 01:41:55]} {[%emt 00:00:10]} h5
{[%clk 01:40:10]} {[%emt 00:00:08]} 5. c4 {[%clk 01:42:12]} {[%emt 00:00:14]}
e6 {[%clk 01:40:30]} {[%emt 00:00:10]} 6. Nc3 {[%clk 01:42:36]} {[%emt
00:00:05]} dxc4 {[%clk 01:38:38]} {[%emt 00:02:23]} 7. Bxc4 {[%clk 01:42:59]}
{[%emt 00:00:07]} Nd7 {[%clk 01:38:50]} {[%emt 00:00:18]} 8. Nge2 {[%clk
01:42:54]} {[%emt 00:00:34]} Be7 {[%clk 01:39:05]} {[%emt 00:00:15]} 9. g3
{[%clk 01:43:15]} {[%emt 00:00:09]} Nh6 {[%clk 01:38:41]} {[%emt 00:00:54]} 10.
Bf4 {[%clk 01:43:34]} {[%emt 00:00:10]} Qb6 {[%clk 01:37:53]} {[%emt 00:01:19]}
11. O-O {[%clk 01:43:19]} {[%emt 00:00:45]} Rd8 {[%clk 01:30:47]} {[%emt
00:07:36]} 12. Qc1 {[%clk 01:43:41]} {[%emt 00:00:08]} Bg6 {[%clk 01:25:43]}
{[%emt 00:05:35]} 13. Bxh6 {[%clk 01:30:41]} {[%emt 00:13:29]} Rxh6 {[%clk
01:25:31]} {[%emt 00:00:42]} 14. Rd1 {[%clk 01:31:06]} {[%emt 00:00:05]} Bf5
{[%clk 01:25:21]} {[%emt 00:00:40]} 15. Kg2 {[%clk 01:09:44]} {[%emt 00:21:52]}
Rh8 {[%clk 01:15:05]} {[%emt 00:10:46]} 16. Bb3 {[%clk 01:04:46]} {[%emt
00:05:29]} g6 {[%clk 01:15:10]} {[%emt 00:00:24]} 17. Qe3 {[%clk 01:02:28]}
{[%emt 00:02:48]} Kf8 {[%clk 01:11:50]} {[%emt 00:03:50]} 18. Rac1 {[%clk
01:02:05]} {[%emt 00:00:52]} Kg7 {[%clk 01:11:46]} {[%emt 00:00:34]} 19. Bc2
{[%clk 00:55:06]} {[%emt 00:07:29]} Bxc2 {[%clk 01:11:37]} {[%emt 00:00:39]} 20.
Rxc2 {[%clk 00:55:32]} {[%emt 00:00:04]} Qa6 {[%clk 01:10:12]} {[%emt
00:01:54]} 21. a3 {[%clk 00:52:01]} {[%emt 00:04:03]} Nb6 {[%clk 01:02:18]}
{[%emt 00:08:22]} 22. Nf4 {[%clk 00:51:31]} {[%emt 00:00:59]} Qc4 {[%clk
01:00:10]} {[%emt 00:02:39]} 23. Rd3 {[%clk 00:41:34]} {[%emt 00:10:27]} Na4
{[%clk 00:44:06]} {[%emt 00:16:35]} 24. Qd2 {[%clk 00:36:34]} {[%emt 00:05:28]}
Nxc3 {[%clk 00:43:18]} {[%emt 00:01:19]} 25. Rcxc3 {[%clk 00:36:59]} {[%emt
00:00:05]} Qa4 {[%clk 00:42:10]} {[%emt 00:01:38]} 26. b4 {[%clk 00:27:52]}
{[%emt 00:09:37]} a5 {[%clk 00:38:49]} {[%emt 00:03:52]} 27. bxa5 {[%clk
00:26:07]} {[%emt 00:02:15]} Qxa5 {[%clk 00:38:37]} {[%emt 00:00:43]} 28. Qb2
{[%clk 00:25:05]} {[%emt 00:01:31]} Rd7 {[%clk 00:36:51]} {[%emt 00:02:16]} 29.
Rb3 {[%clk 00:25:10]} {[%emt 00:00:24]} b5 {[%clk 00:35:29]} {[%emt 00:01:52]}
30. Rf3 {[%clk 00:21:39]} {[%emt 00:04:00]} Qa8 {[%clk 00:28:21]} {[%emt
00:07:40]} 31. Rbd3 {[%clk 00:20:27]} {[%emt 00:01:41]} Rhd8 {[%clk 00:27:56]}
{[%emt 00:00:56]} 32. Kg1 {[%clk 00:13:54]} {[%emt 00:07:03]} Qa4 {[%clk
00:20:36]} {[%emt 00:07:50]} 33. Ne2 {[%clk 00:12:01]} {[%emt 00:02:22]} Qa5
{[%clk 00:20:18]} {[%emt 00:00:49]} 34. Qc1 {[%clk 00:09:44]} {[%emt 00:02:47]}
c5 {[%clk 00:20:01]} {[%emt 00:00:47]} 35. Kh2 {[%clk 00:09:12]} {[%emt
00:01:01]} c4 {[%clk 00:14:49]} {[%emt 00:05:42]} 36. Rc3 {[%clk 00:09:30]}
{[%emt 00:00:12]} Qa8 {[%clk 00:12:54]} {[%emt 00:02:26]} 37. Qf4 {[%clk
00:07:47]} {[%emt 00:02:13]} Rf8 {[%clk 00:13:12]} {[%emt 00:00:11]} 38. g4
{[%clk 00:07:06]} {[%emt 00:01:11]} hxg4 {[%clk 00:13:00]} {[%emt 00:00:43]} 39.
Qxg4 {[%clk 00:07:29]} {[%emt 00:00:07]} Rh8 {[%clk 00:11:58]} {[%emt
00:01:32]} 40. Rh3 {[%clk 00:06:49]} {[%emt 00:01:09]} Rdd8 {[%clk 00:00:35]}
{[%emt 00:11:53]} 41. Rcg3 {[%clk 00:26:41]} {[%emt 00:10:37]} Rxh4 {[%clk
00:23:33]} {[%emt 00:07:33]} 42. Rxh4 {[%clk 00:26:57]} {[%emt 00:00:14]} Bxh4
{[%clk 00:23:58]} {[%emt 00:00:05]} 43. Rh3 {[%clk 00:26:10]} {[%emt 00:01:18]}
Be7 {[%clk 00:24:01]} {[%emt 00:00:27]} 44. Nf4 {[%clk 00:15:53]} {[%emt
00:10:46]} Rh8 {[%clk 00:24:12]} {[%emt 00:00:19]} 45. Nh5+ {[%clk 00:16:19]}
{[%emt 00:00:04]} Kg8 {[%clk 00:19:18]} {[%emt 00:05:24]} 46. Kg1 {[%clk
00:16:21]} {[%emt 00:00:28]} c3 {[%clk 00:18:23]} {[%emt 00:01:25]} 47. Nf6+
{[%clk 00:16:34]} {[%emt 00:00:16]} Bxf6 {[%clk 00:18:44]} {[%emt 00:00:09]} 48.
exf6 {[%clk 00:17:01]} {[%emt 00:00:04]} Rxh3 {[%clk 00:18:23]} {[%emt
00:00:51]} 49. Qxh3 {[%clk 00:17:27]} {[%emt 00:00:04]} c2 {[%clk 00:18:05]}
{[%emt 00:00:49]} 50. Qh6 {[%emt 00:04:47]} Qf8 {[%clk 00:16:16]} 51. Qc1
{[%clk 00:15:53]} {[%emt 00:00:05]} Qc8 {[%clk 00:16:34]} {[%emt 00:00:12]} 52.
Kg2 {[%clk 00:16:08]} {[%emt 00:00:15]} Qc6+ {[%clk 00:16:40]} {[%emt
00:00:24]} 53. f3 {[%clk 00:16:26]} {[%emt 00:00:12]} Kf8 {[%clk 00:16:41]}
{[%emt 00:00:29]} 54. Kf2 {[%clk 00:15:27]} {[%emt 00:01:29]} Ke8 {[%clk
00:16:45]} {[%emt 00:00:26]} 55. a4 {[%clk 00:15:53]} {[%emt 00:00:04]} b4
{[%clk 00:16:37]} {[%emt 00:00:38]} 56. a5 {[%clk 00:16:16]} {[%emt 00:00:07]}
b3 {[%emt 00:05:25]} 57. Qa3 {[%clk 00:16:41]} Qc7 {[%clk 00:12:03]} {[%emt
00:00:12]} 58. Qa4+ {[%clk 00:16:43]} {[%emt 00:00:28]} Kd8 {[%clk 00:12:27]}
{[%emt 00:00:06]} 0-1

[Event "Masters Tournament (MTO)"]
[Site "Biel, Switzerland"]
[Date "2026.07.20"]
[Round "7.7"]
[White "Ghosh, Diptayan"]
[Black "Schnell, Simon"]
[Result "1-0"]
[TimeControl "100+30+30sec/move"]
[WhiteTitle "-"]
[BlackTitle "-"]
[WhiteFideId "5045207"]
[BlackFideId "1345311"]
[WhiteElo "2554"]
[BlackElo "2211"]

1. Nf3 {[%clk 01:36:00]} {[%emt 00:05:00]} d5 {[%clk 01:40:35]} {[%emt
00:00:25]} 2. g3 {[%clk 01:36:08]} {[%emt 00:00:22]} Nf6 {[%clk 01:40:56]}
{[%emt 00:00:09]} 3. Bg2 {[%clk 01:36:34]} {[%emt 00:00:04]} e6 {[%clk
01:41:22]} {[%emt 00:00:04]} 4. O-O {[%clk 01:36:42]} {[%emt 00:00:22]} Be7
{[%clk 01:41:48]} {[%emt 00:00:04]} 5. d3 {[%clk 01:34:11]} {[%emt 00:03:01]}
c5 {[%clk 01:40:25]} {[%emt 00:01:52]} 6. e4 {[%clk 01:28:16]} {[%emt
00:06:26]} O-O {[%clk 01:38:20]} {[%emt 00:02:36]} 7. Qe2 {[%clk 01:28:09]}
{[%emt 00:00:37]} Nc6 {[%clk 01:36:24]} {[%emt 00:02:25]} 8. e5 {[%clk
01:25:03]} {[%emt 00:03:36]} Nd7 {[%clk 01:36:37]} {[%emt 00:00:17]} 9. c4
{[%clk 01:25:29]} {[%emt 00:00:05]} d4 {[%clk 01:23:08]} {[%emt 00:13:58]} 10.
h4 {[%clk 01:24:37]} {[%emt 00:01:22]} a6 {[%clk 01:15:34]} {[%emt 00:08:05]}
11. Bf4 {[%clk 01:20:54]} {[%emt 00:04:12]} Rb8 {[%clk 01:12:33]} {[%emt
00:03:31]} 12. Nh2 {[%clk 01:15:27]} {[%emt 00:05:56]} Re8 {[%clk 01:08:28]}
{[%emt 00:04:36]} 13. Nd2 {[%clk 01:12:29]} {[%emt 00:03:28]} Qc7 {[%clk
01:05:06]} {[%emt 00:03:52]} 14. Ng4 {[%clk 01:07:38]} {[%emt 00:05:22]} Kh8
{[%clk 01:01:11]} {[%emt 00:04:25]} 15. Qf3 {[%clk 00:53:48]} {[%emt 00:14:20]}
Nd8 {[%clk 00:53:23]} {[%emt 00:08:18]} 16. Ne4 {[%clk 00:51:46]} {[%emt
00:02:32]} b5 {[%clk 00:53:28]} {[%emt 00:00:24]} 17. Ngf6 {[%clk 00:49:13]}
{[%emt 00:03:02]} Bxf6 {[%clk 00:50:44]} {[%emt 00:03:15]} 18. exf6 {[%clk
00:48:38]} {[%emt 00:01:06]} e5 {[%clk 00:50:30]} {[%emt 00:00:43]} 19. Bg5
{[%clk 00:44:38]} {[%emt 00:04:30]} Rb6 {[%clk 00:45:35]} {[%emt 00:05:24]} 20.
fxg7+ {[%clk 00:42:05]} {[%emt 00:03:04]} Kxg7 {[%clk 00:44:40]} {[%emt
00:01:25]} 21. Bh3 {[%clk 00:41:05]} {[%emt 00:01:30]} Nf8 {[%clk 00:41:19]}
{[%emt 00:03:51]} 22. Nf6 {[%clk 00:40:17]} {[%emt 00:01:18]} Rbe6 {[%clk
00:40:04]} {[%emt 00:01:45]} 23. Nxe8+ {[%clk 00:37:19]} {[%emt 00:03:28]} Rxe8
{[%clk 00:40:26]} {[%emt 00:00:07]} 24. Qf6+ {[%clk 00:33:38]} {[%emt
00:04:11]} Kg8 {[%clk 00:40:51]} {[%emt 00:00:05]} 25. Bh6 {[%clk 00:33:37]}
{[%emt 00:00:32]} 1-0